bitfinex/quotes_ETHUSD_20250824
["timestamp","ask_amount","ask_price","bid_price","bid_amount"]
[1756065369830,0.4592,4784.9,4782.1,0.044]
[1756065369831,30.0,4784.8,4782.1,0.044]
[1756065370034,5.49054363,4784.7,4782.6,0.004]
[1756065370325,3.0,4784.5,4782.6,0.004]
[1756065370525,0.1048,4782.7,4782.6,0.004]
[1756065370730,0.4592,4784.4,4782.6,0.004]
[1756065371025,30.0,4782.6,4781.1,0.04]
[1756065371324,30.0,4781.1,4779.1,0.04]
[1756065371533,1.607,4781.0,4779.1,0.04]
[1756065371739,2.0662,4781.0,4779.1,0.04]
[1756065371883,30.4592,4780.9,4779.1,0.04]
[1756065372211,32.09174049,4780.8,4779.1,0.04]
[1756065372554,30.0,4779.1,4778.1,0.04]
[1756065372815,31.607,4779.0,4777.1,0.04]
[1756065373044,1.607,4780.1,4777.1,0.04]
[1756065373182,0.4705,4779.0,4777.1,0.04]
[1756065373697,0.4705,4780.0,4777.1,0.04]
[1756065373895,0.4705,4780.0,4777.6,2.09309285]
[1756065374096,0.4705,4780.9,4778.6,2.09264644]
[1756065374300,0.4705,4780.9,4778.0,3.0]
[1756065374513,2.0775,4781.6,4778.1,0.4399]
[1756065374710,2.0775,4781.6,4777.7,1.607]
[1756065374711,0.4705,4781.5,4778.0,3.0]
[1756065374894,30.04,4781.4,4778.0,3.0]
[1756065375099,1e-08,4782.4,4778.1,1.403]
[1756065375297,0.17935956,4783.3,4780.9,16.16801897]
[1756065375483,0.04,4783.4,4781.1,3.0]
[1756065375693,0.04,4783.4,4781.2,2.74428718]
[1756065375892,0.04,4783.4,4781.6,2.09135017]
[1756065376104,0.04,4783.4,4781.9,16.16801897]
[1756065376337,0.04,4783.4,4783.2,2.09064283]
[1756065376560,0.04,4783.4,4782.0,0.4399]
[1756065376773,0.04,4783.4,4782.1,3.20479]
[1756065377052,0.04,4783.4,4783.2,5.09063841]
[1756065377554,0.04,4783.4,4783.2,5.09064353]
[1756065377749,0.04,4783.4,4783.3,3.4399]
[1756065377943,0.04,4783.4,4783.3,0.4399]
[1756065378126,0.04,4784.4,4784.3,2.09016993]
[1756065378317,0.04,4784.4,4784.3,8.27906993]
[1756065378512,0.04,4785.4,4784.4,3.0]
[1756065378843,0.04,4785.4,4784.3,5.94244994]
[1756065378844,0.04,4785.4,4784.6,3.0]
[1756065379014,0.04,4785.4,4784.9,2.08990636]
[1756065379363,0.04,4785.4,4785.0,0.19344994]
[1756065379528,0.04,4785.4,4784.5,1.607]
[1756065379723,0.04,4785.4,4784.7,3.0]
[1756065380114,0.04,4785.4,4784.5,1.607]
[1756065380924,0.04,4785.4,4785.3,0.1048]
[1756065381113,0.04,4785.4,4784.6,2.09002676]
[1756065381310,0.04,4785.4,4783.7,0.16078455]
[1756065381537,0.04,4785.4,4782.9,3.0]
[1756065381715,0.04,4785.4,4783.1,3.0]
[1756065382022,0.04,4785.4,4783.0,6.25408162]
[1756065382023,0.4705,4785.3,4783.0,6.25408162]
[1756065382613,2.0775,4785.3,4782.2,0.15989296]
[1756065382826,0.4705,4785.2,4781.8,5.743]
[1756065383029,30.0,4785.1,4782.1,0.04]
[1756065383230,0.4705,4785.0,4782.1,0.04]
[1756065383432,2.09030962,4784.0,4782.1,0.04]
[1756065383630,37.8195,4783.9,4781.1,0.04]
[1756065383830,3.0,4783.7,4781.1,0.04]
[1756065384066,2.09098198,4782.5,4777.5,3.70012568]
[1756065384240,2.09122669,4781.9,4777.5,1.607]
[1756065384445,5.0910448,4782.3,4777.5,1.607]
[1756065384446,31.81612267,4781.8,4777.5,1.607]
[1756065384717,30.4705,4781.7,4777.5,1.607]
[1756065384922,30.0,4781.6,4777.5,1.607]
[1756065385117,30.4705,4781.6,4777.5,1.607]
[1756065385323,30.4705,4781.5,4777.5,1.607]
[1756065385524,32.50184363,4781.4,4777.5,1.607]
[1756065385724,30.4705,4781.3,4777.5,1.607]
[1756065385919,30.0,4781.2,4777.7,2.09303131]
[1756065386123,30.4705,4781.2,4777.8,2.09298814]
[1756065386357,0.4705,4781.1,4777.5,1.607]
[1756065386653,0.25018436,4781.0,4778.3,3.0]
[1756065386855,0.25018436,4781.0,4777.5,1.607]
[1756065386856,0.4705,4781.1,4778.5,2.09269351]
[1756065387051,0.4705,4781.1,4778.1,0.04]
[1756065387371,0.04,4782.4,4779.2,0.4399]
[1756065387517,0.04,4782.4,4779.4,3.0]
[1756065387719,0.04,4782.4,4779.6,2.09222529]
[1756065388023,0.04,4782.4,4779.7,8.737]
[1756065388221,0.04,4782.4,4779.1,0.04]
[1756065388222,30.0,4782.3,4779.1,0.04]
[1756065388453,0.4705,4782.2,4779.1,0.04]
[1756065388632,1.608,4782.1,4779.1,0.04]
[1756065388834,1.608,4782.1,4780.0,2.09201256]
[1756065389030,1.608,4782.1,4779.1,0.04]
[1756065389242,30.68235,4782.0,4779.1,0.04]
[1756065389446,30.4705,4781.9,4779.1,0.04]
[1756065389668,30.0,4781.8,4779.1,0.04]
[1756065389874,30.4705,4781.8,4779.1,0.04]
[1756065390024,0.21185,4782.0,4779.1,0.04]
[1756065390025,30.4705,4781.7,4779.1,0.04]
[1756065390224,32.50184363,4781.6,4779.3,2.09232213]
[1756065390457,0.4705,4781.5,4779.1,0.04]
[1756065390921,30.0,4781.4,4779.1,0.04]
[1756065391123,0.1048,4779.2,4779.1,0.04]
[1756065391595,0.1048,4779.2,4779.1,2.13242217]
[1756065391723,1.608,4781.6,4779.2,5.0924004]
[1756065391921,0.1048,4779.9,4779.3,0.55723004]
[1756065392129,0.1048,4780.2,4780.1,2.09200644]
[1756065392332,0.1048,4780.2,4779.4,3.0]
[1756065392531,0.1048,4780.2,4779.3,2.16523004]
[1756065392532,0.1048,4779.6,4779.1,0.04]
[1756065392734,0.4705,4781.2,4779.1,0.04]
[1756065392956,0.1048,4779.4,4779.1,0.344]
[1756065393168,1.608,4781.6,4779.1,3.04]
[1756065393346,1.608,4782.8,4779.3,3.0]
[1756065393547,0.1048,4780.6,4780.5,2.09183139]
[1756065393755,0.4705,4782.7,4781.0,2.09161263]
[1756065393756,0.1048,4781.1,4781.0,2.09161263]
[1756065394072,0.1048,4782.5,4782.3,2.09104405]
[1756065394238,0.04,4783.4,4782.4,2.09100033]
[1756065394562,0.001,4786.2,4782.4,2.09100033]
[1756065394563,0.001,4784.4,4782.9,3.0]
[1756065394735,0.001,4786.2,4782.8,16.16801897]
[1756065394736,0.001,4786.2,4783.1,3.0]
[1756065394925,0.001,4786.2,4784.4,2.09011813]
[1756065395259,0.001,4786.2,4784.3,2.09014251]
[1756065395445,0.4705,4785.9,4784.0,1.608]
[1756065395649,0.4705,4785.9,4784.1,3.0]
[1756065395820,0.001,4786.2,4784.4,2.0900916]
[1756065396024,0.001,4786.2,4784.5,2.09006305]
[1756065396466,0.001,4786.2,4784.0,1.608]
[1756065396646,0.001,4786.2,4784.1,3.0]
[1756065396846,0.4705,4785.6,4784.0,4.608]
[1756065397149,0.4705,4785.6,4784.0,1.608]
[1756065397484,0.4705,4785.6,4783.3,3.0]
[1756065397956,0.4705,4785.6,4783.5,3.0]
[1756065398159,0.001,4786.2,4783.7,2.09043209]
[1756065398362,0.001,4786.2,4785.2,2.08975248]
[1756065398549,0.001,4786.2,4785.3,3.4399]
[1756065398745,0.001,4786.2,4785.3,3.0]
[1756065398962,0.001,4786.2,4783.7,4.607]
[1756065399160,0.5105,4785.4,4783.7,2.14796]
[1756065399470,0.5105,4785.4,4783.7,1.607]
[1756065399840,0.04,4785.4,4783.7,1.607]
[1756065400025,0.04,4785.4,4783.8,0.4399]
[1756065400225,0.04,4785.4,4784.0,2.090301]
[1756065400427,0.04,4785.4,4785.2,5.08977065]
[1756065400749,0.04,4785.4,4785.3,4.607]
[1756065400950,0.04,4785.4,4785.3,2.0469]
[1756065401137,0.04,4785.4,4779.7,1.06176805]
[1756065401138,30.0,4785.3,4779.7,1.06176805]
[1756065401326,16.16801897,4785.1,4780.1,2.63464639]
[1756065401530,2.09025607,4784.2,4780.1,0.04]
[1756065401733,38.05552561,4784.1,4780.1,0.04]
[1756065401935,19.16801897,4783.9,4780.1,0.04]
[1756065402135,2.09054364,4783.5,4780.1,0.04]
[1756065402334,36.218,4783.8,4780.1,0.04]
[1756065402335,30.4705,4783.4,4780.1,0.04]
[1756065402568,0.4705,4783.4,4780.1,0.04]
[1756065402731,0.4359,4783.3,4780.1,0.04]
[1756065403174,0.4359,4783.3,4781.4,2.09141968]
[1756065403472,0.4359,4783.3,4780.1,0.04]
[1756065403673,0.4359,4783.3,4780.8,2.09169094]
[1756065403847,0.4359,4783.3,4780.1,0.04]
[1756065404174,0.4359,4783.3,4781.0,0.1048]
[1756065404175,0.1048,4781.7,4781.0,0.1048]
[1756065404375,0.1048,4781.7,4780.2,6.89101269]
[1756065404376,0.4359,4784.9,4781.1,2.0665]
[1756065404584,0.04,4783.4,4783.2,2.09063834]
[1756065404738,0.04,4783.4,4783.3,3.4595]
[1756065404940,0.1048,4785.1,4783.3,20.79640395]
[1756065405141,0.04,4785.4,4784.0,3.0]
[1756065405378,0.04,4785.4,4785.2,2.08974639]
[1756065405552,0.04,4785.4,4784.7,3.0]
[1756065405553,0.041,4786.4,4786.0,2.08939648]
[1756065405753,0.041,4786.4,4786.1,0.1048]
[1756065405953,0.041,4786.4,4786.1,4.18786836]
[1756065406281,0.041,4786.4,4786.2,5.08934018]
[1756065406448,0.041,4786.4,4786.2,2.08934018]
[1756065406669,1e-08,4786.7,4786.4,2.08925288]
[1756065406867,0.4369,4790.5,4786.4,2.08925288]
[1756065406868,0.4369,4790.5,4787.3,2.0888601]
[1756065407069,0.4369,4790.5,4788.3,2.08842386]
[1756065407613,0.4369,4790.5,4788.2,2.08844983]
[1756065407795,0.4359,4789.9,4787.8,3.0]
[1756065407979,0.4359,4789.9,4788.2,2.08845133]
[1756065408305,0.001,4790.5,4788.3,3.0]
[1756065408511,0.001,4790.5,4788.3,4.69815064]
[1756065408868,0.001,4790.5,4789.2,2.0880314]
[1756065409071,0.001,4790.5,4789.4,3.0]
[1756065409376,0.001,4790.5,4790.1,3.0]
[1756065409592,0.001,4790.5,4789.3,6.629]
[1756065409593,0.001,4790.5,4789.6,5.08782928]
[1756065409799,0.001,4790.5,4789.7,1.06408498]
[1756065409969,0.001,4790.5,4789.6,3.0]
[1756065410426,0.001,4790.5,4789.3,1.607]
[1756065410705,0.001,4790.5,4789.4,3.0]
[1756065410906,0.001,4790.5,4789.3,1.607]
[1756065411489,0.4359,4790.3,4788.6,5.703]
[1756065411800,0.4359,4790.3,4788.0,1.607]
[1756065412004,0.001,4790.5,4788.1,0.4242]
[1756065412168,0.001,4790.5,4789.7,2.08780816]
[1756065412364,0.001,4790.5,4789.7,3.0]
[1756065412569,0.4369,4790.5,4789.4,1.606]
[1756065412822,0.4359,4790.3,4787.7,1.606]
[1756065412971,0.4359,4790.3,4787.8,6.63838075]
[1756065413170,0.4359,4790.3,4788.7,2.08824014]
[1756065413481,0.4359,4790.3,4787.8,6.63838075]
[1756065413482,0.001,4790.5,4788.2,3.0]
[1756065413799,0.001,4790.5,4789.2,2.08800368]
[1756065414016,0.001,4790.5,4787.8,0.93938075]
[1756065414194,0.4359,4790.3,4788.5,5.697]
[1756065415088,0.4359,4790.3,4788.8,2.08818417]
[1756065415292,0.4359,4790.3,4788.5,5.697]
[1756065415504,0.4359,4790.3,4788.6,3.0]
[1756065416107,0.104,4790.0,4789.4,0.104]
[1756065416323,0.104,4790.0,4787.9,2.08856957]
[1756065416324,0.4359,4790.3,4787.7,7.298]
[1756065416500,0.4359,4790.2,4788.4,0.1048]
[1756065416667,0.1048,4788.4,4787.8,0.1048]
[1756065416866,0.1048,4788.4,4787.5,0.1048]
[1756065417129,1.607,4790.5,4786.7,5.692]
[1756065417409,0.4359,4790.3,4787.3,2.08882253]
[1756065417571,0.20829,4790.2,4787.9,2.08859544]
[1756065417767,0.20829,4790.2,4786.1,2.12937127]
[1756065417768,30.4359,4790.1,4786.1,2.12937127]
[1756065418006,30.4359,4790.0,4786.5,12.316]
[1756065418213,0.4359,4789.9,4787.0,2.08896923]
[1756065418420,0.4359,4789.9,4786.6,3.0]
[1756065418708,0.4359,4789.9,4787.5,2.08876431]
[1756065419022,0.4359,4789.9,4787.5,0.72176964]
[1756065419243,0.4359,4789.9,4787.1,0.04]
[1756065419406,30.0,4789.8,4787.1,0.04]
[1756065419576,0.4359,4789.7,4787.1,0.04]
[1756065419980,30.0,4789.6,4787.1,0.04]
[1756065420175,0.4359,4789.5,4787.1,0.04]
[1756065420476,0.001,4790.0,4788.5,16.16801897]
[1756065420701,0.001,4790.5,4790.3,2.08755192]
[1756065420904,0.001,4790.5,4790.4,7.29]
[1756065421118,0.001,4790.5,4790.4,10.29]
[1756065421478,0.001,4790.5,4790.4,3.0]
[1756065421729,0.001,4791.5,4790.4,3.3832]
[1756065422016,0.001,4791.5,4790.9,2.08729048]
[1756065422182,0.001,4791.5,4790.9,12.37529048]
[1756065422580,0.001,4791.5,4791.3,2.08711623]
[1756065422819,1e-08,4792.4,4792.3,2.08668071]
[1756065422976,0.4759,4795.4,4792.8,2.08646302]
[1756065423175,0.4759,4795.4,4793.3,2.08624538]
[1756065423408,0.04,4795.4,4793.3,2.08624538]
[1756065423610,0.04,4795.4,4794.2,2.08585373]
[1756065423779,0.04,4795.4,4794.2,12.36985373]
[1756065423982,0.04,4795.4,4794.3,3.0]
[1756065424294,0.04,4795.4,4794.9,3.0]
[1756065424494,0.04,4795.4,4794.2,1.75865116]
[1756065424698,0.04,4795.4,4794.6,3.0]
[1756065425016,0.04,4795.4,4795.2,2.08541645]
[1756065425190,0.04,4795.4,4794.5,5.676]
[1756065425391,0.04,4795.4,4795.2,2.08538478]
[1756065425592,0.04,4795.4,4795.3,3.0]
[1756065425792,0.04,4797.4,4795.5,3.0]
[1756065426006,0.04,4797.4,4795.7,3.0]
[1756065426186,0.04,4797.4,4797.3,2.08450586]
[1756065426384,0.04,4797.4,4797.3,7.75750586]
[1756065426627,0.04,4797.4,4797.3,10.75750586]
[1756065426832,0.04,4797.4,4797.3,8.673]
[1756065426988,1e-08,4798.4,4797.4,3.0]
[1756065427188,0.04,4799.4,4798.3,0.104]
[1756065427527,0.04,4799.4,4799.3,2.08363719]
[1756065427696,0.04,4799.4,4799.3,0.104]
[1756065427899,0.04,4799.4,4799.3,8.772]
[1756065428119,0.04,4799.4,4799.3,10.22074589]
[1756065428428,0.04,4800.4,4799.4,5.08357475]
[1756065428924,0.04,4800.4,4799.5,5.666]
[1756065429089,0.04,4800.4,4799.6,3.0]
[1756065430438,0.04,4800.4,4799.5,5.666]
[1756065430596,0.04,4800.4,4799.5,5.659]
[1756065431001,0.04,4800.4,4799.5,6.43325832]
[1756065431393,0.04,4800.4,4800.2,2.08321213]
[1756065431593,0.04,4800.4,4800.3,8.658]
[1756065431797,0.04,4801.4,4800.4,3.0]
[1756065432034,0.04,4801.4,4801.2,2.08281263]
[1756065432244,0.04,4801.4,4801.3,6.05635242]
[1756065432406,0.04,4801.4,4801.3,9.05635242]
[1756065432754,0.04,4801.4,4801.3,9.39955242]
[1756065433053,1e-08,4802.4,4801.4,5.08270424]
[1756065433245,1e-08,4802.4,4801.5,9.72364416]
[1756065433394,0.4455,4806.6,4802.4,5.0822868]
[1756065433594,0.4455,4806.6,4804.3,2.08146868]
[1756065433827,0.4455,4806.6,4804.3,12.33546868]
[1756065434144,0.4445,4805.2,4804.3,4.603]
[1756065434377,0.4845,4804.4,4803.2,4.603]
[1756065434583,0.4845,4804.4,4803.2,1.603]
[1756065434783,0.4845,4804.4,4803.3,5.65]
[1756065435368,0.04,4804.4,4804.1,2.08154211]
[1756065435545,0.04,4804.4,4803.2,1.603]
[1756065435546,0.4445,4804.3,4803.2,1.603]
[1756065435749,0.4445,4804.3,4803.4,3.0]
[1756065436031,0.4445,4804.3,4803.2,1.603]
[1756065436364,0.4445,4804.3,4801.1,0.04]
[1756065436365,0.4445,4804.3,4802.9,5.643]
[1756065436564,0.001,4803.4,4802.8,5.643]
[1756065436874,0.001,4803.4,4801.8,1.602]
[1756065436875,0.4445,4803.3,4802.9,5.643]
[1756065437083,0.4445,4803.2,4803.0,5.642]
[1756065437285,0.4445,4803.1,4802.7,5.641]
[1756065437489,0.001,4803.4,4802.2,5.641]
[1756065437490,0.4445,4803.0,4802.2,5.641]
[1756065437664,0.4445,4803.0,4801.5,1.602]
[1756065437665,0.4445,4803.0,4801.7,5.64]
[1756065437867,0.4445,4803.0,4801.5,1.602]
[1756065438160,0.104,4801.6,4801.5,7.242]
[1756065438476,0.4445,4803.0,4801.6,3.0]
[1756065438639,0.4445,4803.0,4801.7,5.638]
[1756065438970,0.4445,4803.0,4801.5,1.602]
[1756065438971,0.104,4802.7,4801.8,3.0]
[1756065439187,0.4445,4802.6,4802.0,3.0]
[1756065439664,0.104,4802.1,4802.0,3.0]
[1756065439863,0.5485,4802.1,4802.0,3.0]
[1756065440184,0.104,4802.5,4802.0,3.0]
[1756065440739,0.001,4803.4,4801.5,1.602]
[1756065440740,0.4445,4802.4,4802.1,5.633]
[1756065441048,0.104,4801.6,4801.5,1.602]
[1756065441367,0.001,4803.4,4802.0,2.08246563]
[1756065441368,0.104,4802.1,4802.0,2.08246563]
[1756065441568,0.4445,4802.7,4801.5,1.706]
[1756065441770,0.104,4802.5,4802.3,2.08230214]
[1756065442069,0.105,4803.4,4802.6,0.104]
[1756065442275,0.105,4803.4,4802.8,3.0]
[1756065442450,0.105,4803.4,4803.3,2.08190202]
[1756065442949,0.001,4803.4,4803.1,3.0]
[1756065443149,0.001,4803.4,4803.2,2.08194536]
[1756065444137,0.001,4803.4,4803.2,2.42514536]
[1756065444341,0.001,4803.4,4803.3,0.3432]
[1756065444543,0.04,4804.4,4804.3,2.08146868]
[1756065444749,0.04,4804.4,4804.3,12.30746868]
[1756065445248,0.04,4804.4,4804.3,12.65066868]
[1756065445436,1e-08,4804.4,4804.3,12.65066868]
[1756065445842,1e-08,4805.4,4805.3,2.08103552]
[1756065446042,0.04,4807.4,4805.5,1.04700752]
[1756065446043,1e-08,4806.8,4805.5,1.04700752]
[1756065446243,0.001,4807.8,4805.5,1.04700752]
[1756065446244,0.001,4807.8,4807.5,2.0800832]
[1756065446445,0.001,4807.8,4807.5,14.3050832]
[1756065446645,0.001,4807.8,4807.5,17.3050832]
[1756065447684,0.001,4807.8,4807.5,17.46296337]
[1756065447905,1e-08,4807.8,4807.7,2.07999667]
[1756065448066,1e-08,4807.8,4807.7,2.02999667]
[1756065448394,0.04,4811.4,4807.7,0.3432]
[1756065448551,0.04,4811.4,4809.3,2.07930468]
[1756065448757,0.04,4811.4,4809.3,12.29230468]
[1756065449176,0.4445,4810.8,4809.3,4.6]
[1756065449453,0.4445,4810.8,4805.7,2.08082999]
[1756065449454,0.4845,4809.4,4808.1,1.6]
[1756065449986,0.4345,4809.4,4808.2,5.611]
[1756065451059,0.4345,4809.4,4808.3,5.606]
[1756065451255,0.4345,4809.4,4807.6,1.6]
[1756065451458,30.0,4809.3,4806.5,1.6]
[1756065451710,2.03134363,4809.2,4806.1,0.04]
[1756065451936,30.0,4809.1,4806.1,0.04]
[1756065452191,0.001,4808.8,4806.1,0.04]
[1756065452402,0.4445,4808.7,4807.1,0.04]
[1756065453570,30.0,4808.6,4807.1,0.04]
[1756065453769,2.47584363,4808.5,4807.1,0.04]
[1756065454390,0.4445,4808.4,4807.1,0.04]
[1756065454593,0.4445,4808.4,4807.1,3.04]
[1756065454799,0.4445,4808.4,4807.3,3.0]
[1756065455277,0.4445,4808.4,4807.6,2.08002685]
[1756065455490,0.4445,4808.4,4807.3,3.0]
[1756065455675,0.001,4808.8,4807.3,3.0]
[1756065455857,0.001,4808.8,4808.6,2.07959705]
[1756065456062,0.001,4808.8,4808.7,15.195]
[1756065456597,0.001,4808.8,4808.7,15.194]
[1756065457510,0.04,4810.4,4808.8,3.0]
[1756065457806,0.04,4810.4,4810.3,2.07887241]
[1756065458112,0.04,4810.4,4810.3,12.26887241]
[1756065458687,0.04,4810.4,4810.3,4.599]
[1756065458893,0.04,4810.4,4810.3,10.189]
[1756065460200,0.04,4810.4,4810.3,10.183]
[1756065461512,0.04,4810.4,4810.3,10.37480309]
[1756065461724,0.04,4810.4,4810.3,11.82806893]
[1756065462294,0.04,4810.4,4810.3,10.37480309]
[1756065462823,0.04,4810.4,4810.3,10.36880309]
[1756065463191,0.04,4810.4,4810.3,7.47280309]
[1756065463687,0.04,4810.4,4810.3,10.47280309]
[1756065464027,0.04,4810.4,4810.3,10.281]
[1756065464500,0.04,4810.4,4810.3,12.35987241]
[1756065464704,0.04,4810.4,4810.3,10.281]
[1756065465126,0.04,4810.4,4810.3,12.35987241]
[1756065465325,0.04,4810.4,4810.3,10.177]
[1756065465503,0.04,4810.4,4810.3,10.36845156]
[1756065465895,0.04,4810.4,4810.3,12.44732397]
[1756065466325,0.04,4810.4,4810.3,13.9103511]
[1756065466932,0.04,4810.4,4810.3,14.0043511]
[1756065467836,0.04,4810.4,4810.3,12.54132397]
[1756065468040,0.041,4811.4,4810.3,12.79062397]
[1756065468242,0.104,4813.2,4810.4,3.82183759]
[1756065468426,0.104,4813.2,4812.3,2.07800843]
[1756065468609,0.104,4813.2,4812.3,12.53445999]
[1756065468808,0.4848,4812.4,4812.3,10.35245156]
[1756065469015,0.04,4812.4,4812.3,10.35245156]
[1756065469248,0.04,4812.4,4812.3,12.43045999]
[1756065469552,0.04,4812.4,4812.3,10.35245156]
[1756065469760,0.04,4812.4,4812.3,12.43045999]
[1756065469910,0.04,4812.4,4812.3,10.35245156]
[1756065470113,0.04,4812.4,4812.3,12.43045999]
[1756065470359,0.04,4812.4,4812.3,10.35245156]
[1756065470646,0.04,4812.4,4812.3,12.43045999]
[1756065471033,0.04,4812.4,4812.3,10.35245156]
[1756065471237,0.04,4812.4,4812.3,12.43045999]
[1756065471541,0.04,4812.4,4812.3,10.35245156]
[1756065471749,0.4848,4812.4,4812.3,10.35245156]
[1756065471908,0.4848,4812.4,4812.3,4.78945156]
[1756065472140,0.4848,4812.4,4812.3,10.34345156]
[1756065472539,0.4848,4812.4,4809.5,2.58612]
[1756065472540,0.4848,4812.4,4811.2,1.598]
[1756065472740,0.4848,4812.4,4811.3,5.74312926]
[1756065472951,0.4848,4812.4,4811.4,5.551]
[1756065473888,0.4848,4812.4,4811.5,5.549]
[1756065474173,0.4848,4812.4,4811.7,2.07826755]
[1756065474374,0.4848,4812.4,4811.6,3.0]
[1756065474591,0.4848,4812.4,4811.8,3.0]
[1756065474744,0.4848,4812.4,4812.0,3.0]
[1756065475440,0.04,4812.4,4812.0,3.0]
[1756065475762,0.4448,4812.3,4810.4,3.0]
[1756065476274,0.4448,4812.3,4810.1,4.995]
[1756065476477,0.4448,4812.3,4810.3,5.543]
[1756065476698,0.4448,4812.3,4809.5,0.15361509]
[1756065476977,30.0,4812.2,4808.8,5.541]
[1756065477182,2.47614363,4812.1,4808.6,0.15365946]
[1756065477341,0.0752,4810.4,4807.9,1.598]
[1756065477544,0.4448,4810.3,4808.8,2.07951139]
[1756065477744,0.4448,4810.3,4808.5,5.539]
[1756065477957,0.4448,4810.3,4808.8,2.07950572]
[1756065478154,0.4448,4810.3,4809.2,2.07934791]
[1756065478573,0.4448,4810.3,4808.5,5.539]
[1756065478776,0.4448,4810.3,4807.4,2.08011757]
[1756065478982,0.104,4809.2,4807.9,0.104]
[1756065479302,0.5488,4809.2,4807.9,0.104]
[1756065479480,0.104,4809.2,4808.2,2.07975323]
[1756065479682,0.5488,4809.2,4808.5,0.104]
[1756065479996,0.5488,4809.2,4808.1,0.04]
[1756065481448,33.5488,4809.2,4808.1,0.04]
[1756065481792,32.58014363,4809.2,4808.1,0.04]
[1756065482099,0.0752,4810.4,4808.1,0.04]
[1756065482100,0.22961359,4810.4,4808.1,0.04]
[1756065482266,0.4448,4809.7,4808.1,0.04]
[1756065482811,30.0,4809.6,4808.1,0.04]
[1756065483159,0.4448,4809.5,4808.1,0.04]
[1756065484157,30.0,4809.4,4808.1,0.04]
[1756065484419,2.47614363,4809.3,4808.1,0.04]
[1756065484698,2.47614363,4809.3,4805.4,2.08096045]
[1756065484699,30.0,4808.1,4805.1,0.044]
[1756065484871,2.47614363,4809.3,4805.1,0.044]
[1756065484872,2.0428,4808.0,4805.1,0.044]
[1756065485196,0.5,4807.8,4805.1,0.044]
[1756065485394,0.5,4806.2,4802.3,0.15877032]
[1756065485596,0.5,4806.2,4802.2,2.57962606]
[1756065485597,3.0,4806.0,4802.2,2.57962606]
[1756065485895,0.5,4805.2,4801.9,0.004]
[1756065486068,3.0,4805.0,4801.9,0.004]
[1756065486270,3.0,4804.8,4801.9,0.004]
[1756065486471,0.4448,4805.1,4802.1,0.4736]
[1756065486691,0.4448,4805.1,4802.6,0.27708603]
[1756065486864,0.4448,4805.1,4802.1,0.04]
[1756065487193,0.4448,4805.1,4802.4,0.4336]
[1756065487398,0.4448,4806.0,4803.2,0.4336]
[1756065487564,0.4448,4806.0,4804.3,3.0]
[1756065487760,0.4448,4806.0,4803.2,0.4336]
[1756065488095,0.4448,4806.0,4803.3,3.0]
[1756065488298,0.4448,4806.0,4804.3,2.08146163]
[1756065488496,0.4448,4806.0,4803.4,0.50726]
[1756065488860,0.4448,4806.0,4803.4,0.4336]
[1756065489286,0.4448,4806.0,4803.5,3.0]
[1756065489678,0.04,4806.4,4803.5,3.0]
[1756065489866,0.04,4806.4,4803.6,0.4336]
[1756065490086,0.04,4806.4,4804.9,2.0811876]
[1756065490274,0.04,4806.4,4804.9,2.08117104]
[1756065490588,0.04,4806.4,4805.0,2.08113415]
[1756065490766,0.04,4806.4,4804.7,3.0]
[1756065490967,0.04,4806.4,4805.5,2.08093669]
[1756065491163,0.04,4806.4,4804.7,4.05436]
[1756065491471,30.4448,4806.3,4804.6,1.599]
[1756065491671,0.4448,4806.3,4803.7,5.508]
[1756065491872,0.4448,4806.3,4803.8,2.08168279]
[1756065492072,0.104,4804.0,4803.5,1.599]
[1756065492293,0.4448,4804.6,4802.7,2.08212873]
[1756065492505,0.104,4803.3,4802.4,0.15854814]
[1756065492969,0.104,4803.3,4803.1,2.12197622]
[1756065493169,0.104,4804.2,4803.2,2.64644317]
[1756065493374,0.104,4804.2,4803.3,3.0]
[1756065493703,0.104,4804.2,4803.5,0.104]
[1756065493902,0.104,4803.7,4803.1,0.04]
[1756065494480,0.472,4804.8,4803.1,0.04]
[1756065494804,0.104,4803.2,4803.1,0.04]
[1756065495008,0.104,4803.6,4803.1,0.04]
[1756065495817,0.472,4804.2,4803.1,0.04]
[1756065496409,0.104,4803.2,4803.1,0.04]
[1756065497396,0.576,4803.2,4803.1,0.04]
[1756065497603,0.104,4803.2,4803.1,0.04]
[1756065498290,0.576,4803.2,4803.1,0.04]
[1756065498710,0.104,4803.2,4803.1,0.04]
[1756065499037,0.001,4805.1,4803.1,0.5005]
[1756065499181,0.2073,4805.0,4803.1,3.04]
[1756065499567,0.2073,4805.0,4803.1,0.04]
[1756065500106,0.001,4804.6,4803.1,0.04]
[1756065500605,0.472,4804.5,4803.1,0.04]